{"text_format":"1","workbook":"xlsx","n_sheets":1,"sheets":["Лист1"],"not_rendered":{"charts":0,"images":0,"macros":0,"external_links":0,"defined_names":2,"comments":0,"pivot_tables":0},"unopened":[],"bounds":{"document_bytes":16777216,"sheet_cells":100000,"rows_first":2000,"rows_last":500,"rows_between":2000,"halvings":0,"cell_chars":16384,"cell_head_chars":4096},"cells_cut":0,"cells_raw":0,"read":"whole","date_system":"1900"}

{"sheet":"Лист1","index":0,"n_rows":130,"n_cols":20,"rows_kept":130,"cut":false,"hidden":false,"merged":[[84,1,88,1],[84,0,88,0],[89,2,92,2],[89,3,92,3],[97,0,100,0],[75,3,76,3],[93,0,96,4],[89,0,92,0],[89,1,92,1],[89,4,92,4],[72,4,77,4],[72,1,77,1],[72,0,77,0],[75,2,76,2],[1,12,1,17],[97,1,100,1],[98,2,100,2],[22,8,24,8],[44,5,45,5],[44,3,45,3],[78,4,79,4],[84,4,88,4],[35,1,43,1],[44,1,48,1],[41,2,42,2],[41,3,42,3],[49,0,50,4],[39,2,40,2],[44,2,45,2],[31,8,33,8],[78,0,83,0],[78,1,83,1],[34,4,45,4],[47,4,48,4],[68,2,69,2],[68,3,69,3],[51,0,52,4],[66,4,71,4],[0,12,0,17],[127,0,127,5],[97,4,100,4],[63,2,64,2],[63,3,64,3],[101,0,101,4],[51,5,52,5],[44,16,45,16],[44,12,45,12],[51,7,52,7],[51,8,52,8],[8,12,9,12],[102,0,107,0],[102,1,107,1],[102,2,103,2],[11,1,17,1],[11,0,17,0],[11,4,17,4],[20,0,27,0],[20,1,27,1],[28,0,33,4],[102,3,103,3],[102,4,107,4],[80,4,83,4],[35,0,43,0],[44,0,48,0],[56,0,58,0],[56,1,58,1],[60,1,65,1],[60,0,65,0],[60,4,65,4],[68,5,69,5],[53,0,55,0],[53,1,55,1],[66,1,71,1],[22,5,24,5],[22,6,24,6],[22,2,24,2],[22,3,24,3],[20,4,26,4],[20,2,21,2],[20,3,21,3],[63,6,64,6],[63,5,64,5],[36,2,37,2],[36,3,37,3],[36,5,37,5],[36,6,37,6],[13,2,14,2],[102,17,107,17],[98,12,100,12],[102,12,103,12],[98,16,100,16],[53,17,55,17],[51,12,52,12],[51,16,52,16],[51,17,52,17],[20,17,21,17],[22,16,24,16],[63,12,64,12],[22,12,24,12],[31,5,33,5],[31,6,33,6],[35,17,43,17],[66,17,71,17],[22,7,24,7],[31,7,33,7],[51,6,52,6],[53,4,55,4],[98,3,100,3],[59,0,59,4],[66,0,71,0],[11,17,17,17],[31,16,33,16],[31,12,33,12],[31,11,33,11],[22,11,24,11],[8,8,9,8],[8,9,9,9],[44,14,45,14],[44,15,45,15],[44,10,45,10],[44,11,45,11],[36,16,37,16],[31,10,33,10],[31,9,33,9],[18,16,18,17],[22,17,27,17],[28,17,33,17],[22,10,24,10],[44,17,48,17],[22,9,24,9],[44,9,45,9],[56,17,58,17],[60,17,65,17],[63,10,64,10],[63,11,64,11],[63,16,64,16],[51,11,52,11],[51,10,52,10],[22,13,24,13],[22,14,24,14],[22,15,24,15],[31,13,33,13],[31,14,33,14],[31,15,33,15],[44,13,45,13],[36,12,37,12],[36,13,37,13],[36,14,37,14],[36,15,37,15],[51,14,52,14],[51,15,52,15],[63,14,64,14],[63,15,64,15],[68,10,69,10],[68,11,69,11],[68,16,69,16],[68,12,69,12],[75,12,76,12],[68,9,69,9],[68,13,69,13],[68,14,69,14],[68,15,69,15],[75,13,76,13],[75,14,76,14],[75,15,76,15],[75,10,76,10],[75,11,76,11],[75,16,76,16],[3,0,4,17],[6,0,9,0],[6,1,9,1],[6,2,9,2],[6,3,9,3],[6,4,9,4],[6,5,9,5],[6,6,7,16],[6,17,9,17],[8,6,9,6],[8,7,9,7],[8,10,9,10],[8,11,9,11],[8,16,9,16],[8,13,9,13],[8,14,9,14],[8,15,9,15],[97,17,100,17],[98,9,100,9],[98,10,100,10],[95,17,96,17],[95,16,96,16],[95,12,96,12],[95,11,96,11],[95,10,96,10],[95,9,96,9],[95,13,96,13],[95,14,96,14],[95,15,96,15],[98,13,100,13],[98,11,100,11],[91,16,92,16],[89,17,92,17],[78,17,79,17],[80,17,83,17],[75,9,76,9],[89,10,90,10],[89,11,90,11],[84,17,88,17],[72,17,77,17],[89,13,90,13],[91,11,92,11],[89,5,90,5],[91,5,92,5],[91,8,92,8],[89,8,90,8],[89,6,90,6],[89,7,90,7],[109,17,110,17],[109,16,110,16],[109,12,110,12],[109,11,110,11],[109,10,110,10],[109,9,110,9],[89,16,90,16],[102,9,103,9],[89,12,90,12],[89,14,90,14],[89,15,90,15],[98,14,100,14],[98,15,100,15],[102,13,103,13],[102,14,103,14],[102,15,103,15],[109,13,110,13],[109,14,110,14],[75,5,76,5],[89,9,90,9],[63,9,64,9],[95,5,96,5],[118,16,119,16],[102,7,103,7],[102,6,103,6],[118,11,119,11],[118,10,119,10],[118,9,119,9],[118,8,119,8],[118,7,119,7],[118,6,119,6],[109,8,110,8],[109,7,110,7],[109,6,110,6],[118,12,119,12],[102,5,103,5],[102,16,103,16],[102,11,103,11],[102,10,103,10],[116,10,117,10],[102,8,103,8],[98,5,100,5],[115,17,121,17],[122,17,125,17],[122,16,123,16],[122,12,123,12],[122,11,123,11],[116,16,117,16],[116,12,117,12],[116,11,117,11],[124,16,125,16],[120,16,121,16],[120,11,121,11],[120,12,121,12],[116,14,117,14],[116,15,117,15],[118,14,119,14],[118,15,119,15],[124,14,125,14],[124,15,125,15],[122,13,123,13],[122,14,123,14],[122,15,123,15],[124,12,125,12],[109,15,110,15],[120,13,121,13],[120,14,121,14],[120,15,121,15],[124,5,125,5],[116,8,117,8],[120,8,121,8],[120,9,121,9],[116,13,117,13],[118,13,119,13],[116,9,117,9],[122,10,123,10],[122,9,123,9],[122,8,123,8],[124,9,125,9],[124,8,125,8],[113,0,114,4],[115,0,121,4],[122,0,125,4],[122,7,123,7],[122,6,123,6],[118,5,119,5],[122,5,123,5],[124,13,125,13],[120,10,121,10],[124,7,125,7],[124,6,125,6],[116,7,117,7],[116,6,117,6],[120,6,121,6],[120,7,121,7],[124,11,125,11],[124,10,125,10],[108,0,108,4],[109,3,110,3],[109,1,110,1],[109,0,110,0],[109,2,110,2],[109,4,110,4],[104,3,105,3],[95,8,96,8],[95,7,96,7],[95,6,96,6],[109,5,110,5],[98,7,100,7],[98,6,100,6],[98,8,100,8],[36,7,37,7],[36,8,37,8],[36,9,37,9],[36,10,37,10],[36,11,37,11],[91,6,92,6],[91,7,92,7],[51,9,52,9],[51,13,52,13],[63,13,64,13],[91,12,92,12],[63,8,64,8],[44,6,45,6],[44,7,45,7],[44,8,45,8],[68,8,69,8],[68,7,69,7],[68,6,69,6],[63,7,64,7],[75,6,76,6],[75,7,76,7],[75,8,76,8],[91,9,92,9],[91,10,92,10]]}
[null,null,null,null,null,null,null,null,null,null,null,null,"                                             Додаток 2"]
[null,null,null,null,null,"               ",null,null,null,null,null,null,"                                             до рішення виконкому міської ради"]
[null,null,null,null,null,null,null,null,null,null,null,null,null,null,null,"04.12.2023 №1487"]
["Перелік завдань і заходів  Програми розвитку та утримання житлово-комунального                                                                                                                     господарства міста на період 2017–2026 років"]
[]
[]
["№ п/п","Назва напряму діяльності (пріори-тетні завдання) ","Перелік заходів програми ","Строк, роки ","Виконавці ","Джерела фінансу-вання ","Орієнтовні обсяги потреби в фінансуванні (вартість),  тис. грн, у тому числі:",null,null,null,null,null,null,null,null,null,null,"Очікуваний результат "]
[]
[null,null,null,null,null,null,"2017 рік","2018 рік ","2019 рік","2020 рік","2021 рік","2022 рік","2023 рік","2024 рік","2025 рік","2026 рік","Усього"]
[]
[1,2,3,4,5,6,7,8,9,10,11,12,13,14,15,16,17,18]
[1,"Утри-мання, ремонт, рекон-струкція жит-лового фонду","1.1. Капіталь-ний ремонт ліфтів","2017-2026","Департамент розвитку інф-раструктури міста виконкому Криворізької міської ради, одержувачі коштів, одержувачі коштів","Бюджет Криворізької міської територіальної громади",{"$f":"20000+8000+10000","v":38000},74700,100000,200000,240000,290000,149930,150000,150000,150000,{"$f":"SUM(G12:P12)","v":1542630}," Гарантування    умов   безпеч-ного та комфо-ртного про-живання насе-лення. Надання  об'єднанням співвласників багатоквартир-ного будинку передбаченої чинним зако-нодавством Ук-раїни технічної та/ або іншої документації на житлові бу-динки. Безпечне  користування   ліфтами  меш-канцями бага-токвартирних  будинків, їх належна технічна                                        експлуатація та      безперебійна ро-бота. Продовження   терміну експлуатації ліфтів. Заміна табличок з назвами "]
[null,null,"1.2. Експертне обстеження ліфтів","2017-2026",null,{"$f":"F12","v":"Бюджет Криворізької міської територіальної громади"},100,120,150,100,120,150,150,150,150,150,{"$f":"SUM(G13:P13)","v":1340}]
[null,null,"1.3. Капіталь-ний, поточний ремонт, утримання та реконструкція житлового фонду","2017-2026",null,{"$f":"F12","v":"Бюджет Криворізької міської територіальної громади"},50000,{"$f":"55000-1700","v":53300},60000,20000,45000,80000,20000,50000,50000,50000,478300]
[null,null,null,"2017-2026",null,"Власні надхо-дження",200,200,200,50,40,30,1.5,0,0,0,721.5]
[null,null,"1.4. Охорона об'єктів житлового фонду","2017-2026",null,{"$f":"F14","v":"Бюджет Криворізької міської територіальної громади"},780,1000,1500,1700,2200,2100,0,0,0,0,9280]
[null,null,"1.5. Заміна адресних вивісок","2017-2026",null,{"$f":"F16","v":"Бюджет Криворізької міської територіальної громади"},1500,0,0,600,600,600,600,500,500,500,5400]
[null,null,"1.6. Заходи з виконання доручень виборців депутатами Дніпро-петровської обласної ради ","2017-2026",null,"Субвенція з обласного бюджету бюджетам міст, районів та об’єднанням територіальних   громад на виконання доручень виборців  ",2000,2000,3290,"*","*","*","*","*","*","*",7290]
[null,null,null,null,null,null,null,null,null,null,null,null,null,null,null,null,"Продовження додатка 2"]
[1,2,3,4,5,6,7,8,9,10,11,12,13,14,15,16,17,18]
[null,null,null,null,null,"депутатами обласної ради",null,null,null,null,null,null,null,null,null,null,null,"топонімів на будинках на нові"]
[null,null,null,null,null,{"$f":"F27","v":"Бюджет Криворізької міської територіальної громади"},2000,2000,2000,0,0,0,0,0,0,0,{"$f":"G22+H22+I22+J22+K22+L22+M22+N22+O22+P22","v":6000}]
[null,null,"1.7. Фінансу-вання пере-можців обласного конкурсу мікропроєктів з енергоефек-тивності та енергозбере-ження серед органів самоорганізації населення й ОСББ","2017-2026",null,"Субвенція з обласного бюджету до місцевих бюджетів на фінансування переможців обласного конкурсу мік-ропроєктів з енергоефек-тивності та енерго-збереження серед  органів самоорга-нізації населення та ОСББ",50,200,499.17,"*","*","*","*","*","*","*",{"$f":"G23+H23+I23","v":749.17000000000007},"Підвищення рівня надання населенню житлово-кому-нальних послуг відповідно до вимог національних стандартів, гармонізованих з міжнародними або регіональними"]
[null,null,null,null,null,null,null,0,0]
[null,null,null,null,null,null,null,0,0]
[null,null,"1.8. Послуги з приєднання електроуста-новок до електричних мереж",2017,null,{"$f":"F16","v":"Бюджет Криворізької міської територіальної громади"},120,0,0,0,0,0,0,0,0,0,{"$f":"G26+H26+I26+J26+K26+L26+M26+N26+O26+P26","v":120}]
[null,null,"1.9. Створення належних умов для проживання внутрішньо-переміщених осіб у гурто-житках міста",2021,null,{"$f":"F26","v":"Бюджет Криворізької міської територіальної громади"},0,0,0,0,272.14999999999998,0,0,0,0,0,{"$f":"G27+H27+I27+J27+K27+L27+M27+O27+N27+P27","v":272.14999999999998}]
[null,null,"1.10. Заходи (ремонтні роботи) з усунення аварій у житловому фонді","2022-2026","Одержувачі коштів",{"$f":"F27","v":"Бюджет Криворізької міської територіальної громади"},0,0,0,0,0,500,3000,0,0,0,{"$f":"G28+H28+I28+J28+K28+L28+M28+N28+O28+P28","v":3500}]
["Усього",null,null,null,null,{"$f":"F27","v":"Бюджет Криворізької міської територіальної громади"},{"$f":"G12+G13+G14+G16+G17+G22+G26+G27","v":92500},{"$f":"H12+H13+H14+H16+H17+H22+H26+H27","v":131120},{"$f":"I12+I13+I14+I16+I17+I22+I26+I27","v":163650},{"$f":"J12+J13+J14+J16+J17+J22+J26+J27","v":222400},{"$f":"K12+K13+K14+K16+K17+K22+K26+K27","v":288192.15000000002},{"$f":"L12+L13+L14+L16+L17+L22+M26+L27+L28","v":373350},{"$f":"M28+M27+M26+M22+M17+M16+M14+M13+M12","v":173680},{"$f":"N28+N27+N26+N22+N17+N16+N14+N13+N12","v":200650},200650,200650,{"$f":"SUM(G29:P29)","v":2046842.15}]
[null,null,null,null,null,"Власні надхо-дження",{"$f":"G15","v":200},200,200,50,40,30,1.5,0,0,0,{"$f":"SUM(G30:P30)","v":721.5}]
[null,null,null,null,null,"Субвенція з обласного бюджету бюджетам міст, районів та об’єднанням територіальних   громад на виконання доручень виборців депутатами обласної ради",{"$f":"G18","v":2000},2000,3290,"*","*","*","*","*","*","*",{"$f":"G31+H31+I31","v":7290}]
[null,null,null,null,null,"Субвенція з обласного бюджету до місцевих бюджетів на фінансування переможців обласного конкурсу мікропроєктів з енергоефек- тивності та енерго-збереження серед  органів самоорганізації населення та ОСББ",{"$f":"G23","v":50},{"$f":"H23","v":200},{"$f":"I23","v":499.17},"*","*","*","*","*","*","*",{"$f":"G32+H32+I32","v":749.17000000000007}]
[]
[]
[2,"Комуналь-не майно","2.1. Оформ-лення висно-вку спеціалі-зованої органі-зації про мож-ливість (немо-жливість) подальшої експлуатації основних засобів, інших необоротних ","2017-2026","                                   Департамент розвитку інф-раструктури міста виконкому Криворізької міської ради",{"$f":"F27","v":"Бюджет Криворізької міської територіальної громади"},15,15,15,20,74,200,282.5,150,0,0,{"$f":"SUM(G35:P35)","v":771.5},"Реалізація заходів з упорядкування об҆єктів, що перебувають на балансовому обліку департаменту розвитку інфаструктури міста виконкому "]
[null,null,"матеріальних активів, проведення експертиз",null,null,null,null,null,null,null,null,null,null,null,null,null,null,"Криворізької міської ради . Забезпечення діяльності департаменту розвитку інфаструктури міста виконкому Криворізької міської ради в межах повноважень"]
[null,null,"2.2. Інвентари-зація, технічна інвентаризація, оцінка майна, технічне обстеження об’єктів нерухомого майна та  об’єктів (елементів) благоустрою з виготовленням технічного паспорта та  технічного висновку, оформлення довідок на об’єкти  нерухомго майна ","2017-2026",null,{"$f":"F35","v":"Бюджет Криворізької міської територіальної громади"},725,725,725,{"$f":"400+11.66","v":411.66},400,650,250,1200,0,0,{"$f":"G37+H37+I37+J37+K37+L37+M37+N37+O37+P37","v":5086.66}]
[]
[null,null,"2.3. Знесення (розбирання) об'єктів нерухомого майна","2017-2026",null,{"$f":"F37","v":"Бюджет Криворізької міської територіальної громади"},1000,750,500,2000,4000,3000,800,0,0,0,{"$f":"G39+H39+I39+J39+K39+L39+M39+N39+O39+P39","v":12050}]
[null,null,"2.4. Придбан-ня в комуна-льну власність житла для надання в тимчасове користування внутрішньо переміщеним особам та послуги з оформлення відповідних документів",2018,null,"Субвенція з де-ржавного бюд-жету місцевим бюджетам на здійснення за-ходів щодо під-тримки терито-рій, що зазнали негативного  впливу внаслі-док  збройного конфлікту на сході України",0,2000,0,0,0,0,0,0,0,0,{"$f":"SUM(G40:P40)","v":2000}]
[null,null,null,2018,null,{"$f":"F37","v":"Бюджет Криворізької міської територіальної громади"},0,{"$f":"2140","v":2140},0,0,0,0,0,0,0,0,{"$f":"SUM(G41:P41)","v":2140}]
[null,null,"2.5. Сплата  земельного податку",2017,null,"Власні надхо-дження",500,600,700,700,2000,250,130,0,0,0,{"$f":"SUM(G42:P42)","v":4880}]
[null,null,null,null,null,{"$f":"F41","v":"Бюджет Криворізької міської територіальної громади"},{"$f":"547.35+94.47","v":641.82000000000005},0,0,0,0,0,0,188,200,200,{"$f":"SUM(G43:P43)","v":1229.8200000000002}]
[null,null,"2.6. Витрати, пов'язані із судовими процесами,ог-олошеннями за судовими справами, послугами з питань патентування та авторського права, юридичними та поштовими послугами ","2017-2026",null,{"$f":"F43","v":"Бюджет Криворізької міської територіальної громади"},40,40,40,20,{"$f":"50+40","v":90},700,1135,1000,0,0,{"$f":"SUM(G44:P44)","v":3065}]
[null,null,"2.7. Висвітлен-ня діяльності департаменту розвитку інфра-структури міс-та виконкому Криворізької міської ради в засобах масо-вої інформації","2017-2026",null,{"$f":"F44","v":"Бюджет Криворізької міської територіальної громади"},190,190,190,190,199,190,53.9,100,100,100,{"$f":"G45+H45+I45+J45+K45+L45+M45+N45+O45+P45","v":1502.9}]
[]
[null,null,"2.8. Реєстрація та перереєстра-ція спеціальної технік, автотранс-порту (узяття на облік та зняття з нього)","2017-2026","Департамент розвитку інф-раструктури міста виконкому Криворізької міської ради, виконавчий комітет Криворізької міської ради",{"$f":"F45","v":"Бюджет Криворізької міської територіальної громади"},10,10,10,11,50,25,25,0,0,0,{"$f":"G47+H47+I47+J47+K47+L47+M47","v":141}]
[null,null,"2.9. Послуги з розробки про-ектів землеуст-рою щодо від-ведення земельних ділянок у постійне користування під об´єкти нерухомості","2017-2026",null,"Бюджет Криворізької міської територіальної громади",0,0,150,150,100,100,100,0,0,0,{"$f":"G48+H48+I48+J48+K48+L48+M48","v":600}]
[null,null,"2.10. Прид-бання техніки та обладнання, предметів довгостроко-вого користу-вання ",2020,null,"Бюджет Криворізької міської територіальної громади",0,0,0,16000.8,0,0,0,0,0,0,{"$f":"G49+H49+I49+J49+K49+L49+M49","v":16000.8}]
["Усього",null,null,null,null,"Бюджет Криворізької міської територіальної громади",{"$f":"G35+G36+G37+G39+G41+G43+G44+G45+G47+G48+G49","v":2621.82},{"$f":"H35+H36+H37+H39+H41+H43+H44+H45+H47+H48+H49","v":3870},{"$f":"I35+I36+I37+I39+I41+I43+I44+I45+I47+I48+I49","v":1630},{"$f":"J35+J36+J37+J39+J41+J43+J44+J45+J47+J48+J49","v":18803.46},{"$f":"K35+K36+K37+K39+K41+K43+K44+K45+K47+K48+K49","v":4913},{"$f":"L35+L36+L37+L39+L41+L43+L44+L45+L47+L48+L49","v":4865},2646.4,2638,300,300,{"$f":"SUM(G50:P50)","v":42587.68},{"$f":"SUM(Q35:Q49)-Q40-Q42","v":42587.680000000008}]
[null,null,null,null,null,"Власні надхо-дження",{"$f":"G42","v":500},600,700,700,2000,250,130,{"$f":"N42","v":0},{"$f":"O42","v":0},0,{"$f":"SUM(G51:P51)","v":4880}]
[null,null,null,null,null,"Субвенція з державного бюджету місцевим бюджетам на здійснення за- ходів щодо підтримки територій, що зазнали негативного впливу внаслідок збройного конфлікту на сході України впливу внаслідок збройного конфлікту на сході Укрваїни ",{"$f":"G40","v":0},2000,0,0,0,0,0,{"$f":"N40","v":0},0,{"$f":"P40","v":0},2000]
[]
[3,"Санітарна очистка міста","3.1. Оформлен-ня права корис-тування земе-льними ділян-ками під полі-гонами звалищ сміття міста","2017-2021","Департамент розвитку інф-раструктури міста виконкому Криворізької міської ради",{"$f":"F50","v":"Бюджет Криворізької міської територіальної громади"},190,0,0,1000,1000,0,0,0,0,0,{"$f":"SUM(G54:P54)","v":2190},"Покращення еко-логічної ситуації в місті (санітарне очищення) "]
[null,null,"3.2. Розробка проєктно-кошторисної документації на рекультивацію полігону для складування твердих побутових відходів",2022,null,"Бюджет Криворізької міської територіальної громади",0,0,0,0,0,1000,0,0,0,0,{"$f":"SUM(G55:P55)","v":1000}]
[null,null,"3.3. Ліквідація стихійних звалищ","2017-2026",null,{"$f":"F54","v":"Бюджет Криворізької міської територіальної громади"},190,300,1261,1000,1500,2000,0,0,0,0,{"$f":"SUM(G56:P56)","v":6251}]
[null,null,"3.4.Придбання та ремонт кон-тейнерних систем для розміщення контейнерів для збору твердих побутових відходів","2018-2026",null,{"$f":"F56","v":"Бюджет Криворізької міської територіальної громади"},0,2500,5000,15000,15000,15000,13860,13000,0,0,{"$f":"G57+H57+I57+J57+K57+L57+M57+N57+O57+P57","v":79360}]
[null,null,"3.5. Утри-мання, поточний, капітальний ремонт контейнерних майданчиків","20120-2023",null,{"$f":"F57","v":"Бюджет Криворізької міської територіальної громади"},0,0,0,15000,15000,20000,0,0,0,0,{"$f":"SUM(G58:P58)","v":50000}]
[null,null,"3.6. Коригу-вання схеми санітарної очистки міста","2021-2026",null,"Бюджет Криворізької міської територіальної громади",0,0,0,0,300,320,320,0,0,0,940]
["Усього",null,null,null,null,"Бюджет Криворізької міської територіальної громади",{"$f":"G59+G58+G57+G56+G55+G54","v":380},2800,6261,32000,32800,38320,{"$f":"SUM(M54:M59)","v":14180},{"$f":"N59+N58+N57+N56+N55+N54","v":13000},{"$f":"O59+O58+O57+O56+O55+O54","v":0},0,139741]
[4,"Підтрим-ка  кому-нальних підпри-ємств - надавачів послуг з теплопос-тачання, водопостачання та водовідве-дення","4.1. Фінансова підтримка","2017-2021","Департамент розвитку інф-раструктури міста виконкому Криворізької міської ради - головний роз-порядник коштів, Ко-мунальне  підприємство теплових мереж «Криворіжтепломе-режа» - одержувач коштів ","Бюджет Криворізької міської територіальної громади",12000,80000,{"$f":"40000+4166.29+20000","v":64166.29},{"$f":"25000+12000","v":37000},55000,0,0,0,0,0,248166.29,"Економія теплової та електричної енергії, природного газу, покращення якості  виконання робіт на системі тепло- постачання. Покращення якості надання послуг з водопостачання та водо- відведення. Зни-ження травма-тизму населення, запобігання нещасним випадкам. Економія енергоресурсів"]
[null,null,"4.2 Погашення заборгованос-ті за теплову енергію",2022,null,"Бюджет Криворізької міської територіальної громади",0,0,0,0,0,75000,0,0,0,0,75000]
[null,null,"4.3. Придбан-ня теплоізо-ляційних матеріалів","2017-2026",null,{"$f":"F61","v":"Бюджет Криворізької міської територіальної громади"},5000,5000,5000,0,3000,3000,3000,0,0,0,24000]
[null,null,"4.4. Придбан-ня блочних автоматизова-них пальників з частотними перетворюва-чами","2017-2019",null,"Бюджет Криворізької міської територіальної громади",5000,6000,5000,0,0,0,0,0,0,0,{"$f":"G64+H64+I64+J64+K64+L64+M64","v":16000}]
[]
[null,null,"4.5. Реконст-рукція схеми теплопоста-чання",2017,null,{"$f":"F64","v":"Бюджет Криворізької міської територіальної громади"},1500,0,0,0,0,0,0,0,0,0,{"$f":"G66+H66+I66+J66+K66+L66+M66","v":1500}]
[null,null,"4.6. Демонтаж димової труби котельні «Прорізна, 87»",2017,null,"Бюджет Криворізької міської територіальної громади",1500,0,0,0,0,0,0,0,0,0,{"$f":"G67+H67+I67+J67+K67+L67+M67","v":1500}]
[null,null,"4.7. Поповнен-ня статутного  капіталу  на  придбання спецтехніки, обладнання  та предметів довгостроко-вого користування","2018-2026",null,"Бюджет Криворізької міської територіальної громади",{"$f":"1420+2450","v":3870},0,0,0,2500,{"$f":"5000+37000","v":42000},{"$f":"64800+10360","v":75160},0,0,0,{"$f":"G68+H68+I68+J68+K68+L68+M68+N68+O68+P68","v":123530}]
[null,null,"4.8. Оснащен-ня вузлами комерційного  обліку те-плової енергії житлових будинків, приєднаних до зовнішніх інженерних мереж","2019-2026",null,"Бюджет Криворізької міської  територіальної громади",0,18235,12752.19,0,0,0,0,0,0,0,{"$f":"G69+H69+I69+J69+K69+L69+M69","v":30987.190000000002}]
[]
[null,null,"4.9. Поповнен-ня статутного капіталу  на ви-конання робіт з будівництва, реконструкції, капітального ремонту  коте-лень та  тепло-вих мереж ","2017-2026",null,{"$f":"F67","v":"Бюджет Криворізької міської територіальної громади"},0,0,10000,0,35000,18000,18000,0,0,0,{"$f":"G71+H71+I71+J71+K71+L71+M71+N71+O71+P71","v":81000}]
[null,null,"4.10. Придбан-ня матеріалів, обладнання (устаткування) для виконання робіт з буді-вництва, реко-нструкції, капі-тального та поточного ","2022-2026",null,{"$f":"F68","v":"Бюджет Криворізької міської територіальної громади"},0,0,0,0,0,10000,10000,0,0,0,{"$f":"G72+H72+I72+J72+K72+L72+M72","v":20000}]
[null,null,"ремонту  котелень та  теплових мереж "]
[null,null,"4.11. Заходи щодо врегулю-вання проблем-них питань в опалювальний період 2021/ 2022 років, пов'язані з різ-ким зростан-ням цін  на енергоресурси","2021-2022",null,{"$f":"F72","v":"Бюджет Криворізької міської територіальної громади"},0,0,0,0,20500,27000,0,0,0,0,{"$f":"G74+H74+I74+J74+K74+L74+M74","v":47500}]
[null,null,"4.12. Оплата праці та енергоносіїв (електроенер-гія, вода тощо)","2022-2026",null,{"$f":"F74","v":"Бюджет Криворізької міської територіальної громади"},0,0,0,0,0,{"$f":"30000+18000","v":48000},{"$f":"100000","v":100000},0,0,0,{"$f":"G75+H75+I75+J75+K75+L75+M75+N75+O75+P75","v":148000}]
[null,null,"4.13.Придбан-ня обладнання та предметів довгостроко-вого користу-вання (транс-портних засо-бів, спецтех-ніки та спеціа-лізованої техні-ки, устаткуван-ня, обладнан-ня, пристроїв тощо) для здійснення заходів з енергозбе-реження","2022-2026",null,{"$f":"F75","v":"Бюджет Криворізької міської територіальної громади"},0,0,0,0,0,14860,20000,0,0,0,{"$f":"G76+H76+I76+J76+K76+L76+M76","v":34860}]
[]
[null,null,"4.14. Придбан-ня обладнання та предметів довгостроко-вого користу-вання (транс-портних засо-",2022,null,{"$f":"F76","v":"Бюджет Криворізької міської територіальної громади"},0,0,0,0,0,17600,0,0,0,0,{"$f":"G78+H78+I78+J78+K78+L78+M78","v":17600}]
[null,null,"бів, спецтех-ніки та спеціа-лізованої техні-ки, устаткуван-ня, обладнан-ня, пристроїв тощо)  "]
[null,null,"4.15. Заходи, у тому числі з енергозбереже-ння, на об'єктах теплопостачан-ня комунальної власності міста Кривого Рогу в умовах збройної агресії Російської Федерації проти України","2023-2026",null,"Субвенція з обласного бю-джету для здій-снення заходів,   в тому числі з енергозбереже-ння, на об'єк-тах теплопоста-чання комуна-льної власності міста Кривого Рогу в умовах збройної агре-сії Російської Федерації проти України",0,0,0,0,0,0,300000,300000,0,0,{"$f":"M80","v":300000}]
[null,null,"4.16. Оплата праці та енергоносіїв (електроенер-гія, вода тощо)","2017-2026","Департамент розвитку інф-раструктури міста виконкому Криворізь-кої міської ради - головний роз-порядник коштів,     Комунальне   підприємс-тво «Кри-вбасводо-канал» - одержувач коштів ",{"$f":"F72","v":"Бюджет Криворізької міської територіальної громади"},30000,30000,30000,0,0,{"$f":"90000+12000+28000+8000+15000","v":153000},{"$f":"80000+50000","v":130000},0,0,0,{"$f":"G81+H81+I81+J81+K81+L81+M81+N81+O81+P81","v":373000},"Покращення якості надання послуг з водо-постачання та водовідведення. Зниження тра-вматизму насе-лення, запобі-гання нещасним  випадкам. Еко-номія ресурсів"]
[null,null,"4.17. Придбан-ня кришок люків","2017-2026",null,{"$f":"F72","v":"Бюджет Криворізької міської територіальної громади"},2000,2000,2000,1000,{"$f":"J82*1.05","v":1050},{"$f":"K82*1.05","v":1102.5},500,600,700,700,{"$f":"G82+H82+I82+J82+K82+L82+M82+N82+O82+P82","v":11652.5}]
[null,null,"4.18. Послуги щодо фінан-сового лізингу на придбання спецтехніки","2017-2019",null,{"$f":"F82","v":"Бюджет Криворізької міської територіальної громади"},14658.87,37280.589999999997,20963.5,0,0,0,0,0,0,0,{"$f":"G83+H83+I83+J83+K83+L83+M83","v":72902.959999999992}]
[null,null,"4.19.  Капіталь-ний  ремонт, будівництво, реконструкція  мереж водо-постачання та водовідве-дення","2017-2026",null,{"$f":"F83","v":"Бюджет Криворізької міської територіальної громади"},62408.800000000003,0,6476,{"$f":"7026.77+1000+1000","v":9026.77},15000,20000,20000,0,0,0,132911.57]
[null,null,"4.20. Прид-бання мате-ріалів, облад-нання (уста-ткування) для виконання ка-пітальних ре-монтів, будів-ництва, реконс-трукції мереж і споруд водопостачан-ня та водо-відведення","2017-2026",null,{"$f":"F84","v":"Бюджет Криворізької міської територіальної громади"},10520,13000,17000,{"$f":"3000+267","v":3267},{"$f":"J85*1.05","v":3430.3500000000004},5000,5000,400,0,0,{"$f":"G85+H85+I85+J85+K85+L85+M85+N85+O85+P85","v":57617.35}]
[null,null,"4.21.  Попов-нення статут-ного  капіталу на  придбання спецтехніки, обладнання та   предметів до-вгостроково-го користування  ","2017-2026",null,"Бюджет Криво-різької міської територіальної громади ",12398.84,0,0,0,0,{"$f":"10000+3000+52000","v":65000},{"$f":"48965+37800+1980","v":88745},15000,0,0,{"$f":"G86+H86+I86+J86+K86+L86+M86+N86+O86+P86","v":181143.84}]
[null,null,"4.22. Послуги з обслуговуван-ня підвищува-льних насосів холодної води",2017,null,"Бюджет Криво-різької міської територіальної громади",2340,0,0,0,0,0,0,0,0,0,2340]
[null,null,"4.23. Придбан-ня пожежних гідрантів","2020-2026",null,{"$f":"F86","v":"Бюджет Криво-різької міської територіальної громади "},0,0,0,1000,{"$f":"J88*1.05","v":1050},{"$f":"K88*1.05","v":1102.5},550,1200,1500,1500,{"$f":"G88+H88+I88+J88+K88+L88+M88+N88+O88+P88","v":7902.5}]
[null,null,"4.24.Придбан-ня обладнання та предметів довгостроко-вого користу-вання (транс-портних засо-бів, спецтех-ніки та спеціа-лізованої техні-ки, устаткуван-ня, обладнан-ня, пристроїв тощо) ","2023-2026",null,"Бюджет Криво-різької міської територіальної громади",0,0,0,0,0,83000,0,0,0,0,83000]
[null,null,"4.25. Заходи із забезпечення  міста Кривого Рогу водо-постачанням в умовах зброй-ної агресії Російської Федерації проти України","2023-2026","Департамент розвитку інф-раструктури міста виконко-му Криворізь-кої міської ради - голов-ний розпоряд-ник коштів,     Комунальне   підприємство «Кривбасводо-канал» - одержувач коштів ","Субвенція з обласного бю-джету до бюд-жету Криворі-зької міської територіальної громади для здійснення за-ходів із забез-печення  міста Кривого Рогу водопостачан-ням в умовах збройної агре-сії Російської Федерації проти України",0,0,0,0,0,0,100000,0,0,0,100000,"Недопущення зниження експлуатаційного рівня води у джерелі питного водопостачання міста за рахунок впровадження альтернативної моделі подачі (перекачування) обсягу води для поповнення Південного водосховища"]
[]
[null,null,null,null,null,"Бюджет Криворізької міської територіальної громади",0,0,0,0,0,0,80900,0,0,0,{"$f":"M92","v":80900}]
[]
["Усього",null,null,null,null,{"$f":"F88","v":"Бюджет Криво-різької міської територіальної громади "},{"$f":"SUM(G61:G89)-G80+G92","v":163196.50999999998},191515.59,173357.98,51293.770000000004,136530.35,583665,551855,17200,{"$f":"SUM(O61:O89)-O80+O92","v":2200},2200,{"$f":"SUM(G94:P94)","v":1873014.2},null,null,{"$f":"SUM(G61:P89)-Q80+Q92","v":2173014.2000000002}]
[null,null,null,null,null,"Субвенція з обласного бю-джету для здійснення заходів,   у тому числі з енерго-збереження, на об'єктах теплопоста-чання комуна-льної власності міста Кривого Рогу в умовах збройної агре-сії Російської Федерації проти України",0,0,0,0,0,0,{"$f":"M80","v":300000},0,0,0,{"$f":"M95","v":300000}]
[null,null,null,null,null,"Субвенція з обласного бю-джету до бюд-жету Криворі-зької міської територіальної громади для здійснення за-ходів із забез-печення  міста Кривого Рогу водопостачан-ням в умовах збройної агре-сії Російської Федерації проти України",{"$f":"G90","v":0},{"$f":"H90","v":0},0,0,0,0,100000,0,0,0,100000]
[]
[5,"Заходи,  пов’язані з економіч-ною дія-льністю Комуналь-ного   зак-ладу   «Дитячий оздоровчий табір «Перлина Кри-воріжжя» Криворізь-кої міської ради","5.1. Поповнен-ня статутного капіталу на придбання  обладнання   і предметів довгостроко-вого користування",2017,"Департамент розвитку інф-раструктури міста виконкому Криворізької міської ради - головний роз-порядник коштів, Ко-мунальний заклад «Ди- тячий оздо-ровчий табір  «Перлина Кри-воріжжя» Криворізької міської ради - одержувач коштів ",{"$f":"F94","v":"Бюджет Криво-різької міської територіальної громади "},{"$f":"300-125.1","v":174.9},0,0,0,0,0,0,0,0,0,{"$f":"SUM(G98:P98)","v":174.9},"Забезпечення умов для оздоровлення дітей та стабільної роботи Комунального закладу «Дитячий оздоровчий табір   «Перлина Криворіжжя» Криворізької міської ради "]
[null,null,"5.2. Інші  заходи, пов'язані з економічною діяльністю закладу","2017-2018",null,{"$f":"F98","v":"Бюджет Криво-різької міської територіальної громади "},{"$f":"500-156.55","v":343.45},{"$f":"500-343.45+125.1","v":281.64999999999998},0,0,0,0,0,0,0,0,{"$f":"G99+H99+I99+J99+K99+L99+M99","v":625.09999999999991}]
[]
[]
["Усього",null,null,null,null,{"$f":"F99","v":"Бюджет Криво-різької міської територіальної громади "},{"$f":"G98+G99","v":518.35},281.64999999999998,0,0,0,0,{"$f":"M99+M98","v":0},0,0,0,{"$f":"SUM(G102:M102)","v":800}]
[6,"Заходи,  пов’язані з економіч-ною дія-льністю Комуналь-ного  під-приємства «Кривбас-теплоенер-го» Криворізь-кої міської ради","6.1. Заходи, пов´язані з за-лученням кре-дитних ресур-сів на впрова-дження проєк-тів з енерго-ефективності","2017-2019"," Департамент розвитку інф-раструктури міста виконкому Криворізь-кої міської  ради -головний розпоря-дник коштів, Комунальне підприємство «Кривбастеп-лоенерго» Криворізької міської ради - одержувач коштів",{"$f":"F102","v":"Бюджет Криво-різької міської територіальної громади "},1000,1000,1000,0,0,0,0,0,0,0,{"$f":"SUM(G103:M103)","v":3000},"Реалізація програм пріоритетних інвестицій для підвищення енергоефектив-ності  грома-дських будівель"]
[]
[null,null,"6.2. Поповнен-ня статутного капіталу на придбання  обладнання і предметів дов-гострокового користування","2017-2020",null,{"$f":"F103","v":"Бюджет Криво-різької міської територіальної громади "},100,0,100,69,0,0,0,0,0,0,{"$f":"G105+H105+I105+J105+K105+L105+M105","v":269}]
[null,null,"6.3. Інші  заходи, пов'язані з економічною діяльністю підприємства",null,null,{"$f":"F105","v":"Бюджет Криво-різької міської територіальної громади "},0,0,3000,{"$f":"414","v":414},0,0,0,0,0,0,{"$f":"G106+H106+I106+J106+K106+L106+M106","v":3414}]
[null,null,"6.4. Фінансова підтримка","2020-2021",null,{"$f":"F105","v":"Бюджет Криво-різької міської територіальної громади "},0,0,0,1000,{"$f":"1980","v":1980},0,0,0,0,0,{"$f":"G107+H107+I107+J107+K107+L107+M107","v":2980}]
[null,null,"6.5. Заходи з енергозбере-ження (вико-нання робіт з будівництва, реконструкції, капітального ремонту коте-лень та тепло-вих мереж) ","2023-2026",null,"Бюджет Криворізької міської територіальної громади ",0,0,0,0,0,0,{"$f":"4700","v":4700},0,0,0,{"$f":"G108+H108+I108+J108+K108+L108+M108","v":4700}]
["Усього",null,null,null,null,{"$f":"F108","v":"Бюджет Криворізької міської територіальної громади "},{"$f":"G103+G105","v":1100},{"$f":"H103+H105","v":1000},{"$f":"I103+I105+I106","v":4100},{"$f":"J103+J105+J106+J107+J108","v":1483},{"$f":"K107+K108","v":1980},{"$f":"L103+L105+L106","v":0},{"$f":"SUM(M103:M108)","v":4700},0,0,0,{"$f":"SUM(G109:P109)","v":14363}]
[7,"Заходи,  пов’язані з економіч-ною дія-льністю  Комуналь-ного  під-приємства  «Сансер-віс» Криворізь-кої міської ради"," Заходи, пов'язані з реалізацією проєкту «Нове будівництво комплексу з перероблення, знешкодження та складування твердих побутових відходів у Металургійно- му районі міста Кривого Рогу Дніпропет-ровської області» ","2020-2022","Департа-мент роз-витку інф-раструктури міста виконкому Криворізь-кої міської ради,  Ко-мунальне підприєм-ство «Сан-сервіс» Криворізької міської ради - одержувач коштів",{"$f":"F109","v":"Бюджет Криворізької міської територіальної громади "},0,0,0,300,600,9587.73,0,0,0,0,{"$f":"SUM(G110:M110)","v":10487.73}]
[]
[8,"Заходи, пов'язані з попередже-нням і ліквідацією наслідків збройної агресії Російської Федерації"," Заходи, пов'язані з попереджен- ням і ліквіда-цією наслідків збройної агресії Російської Федерації","2023-2026","Департамент розвитку інф-раструктури міста виконкому Криворізької міської ради - головний розпорядник коштів, одержувачі коштів","Бюджет Криворізької міської територіальної громади ",0,0,0,0,0,0,60000,90000,0,0,{"$f":"G112+H112+I112+J112+K112+L112+M112+N112+O112+P112","v":150000}]
[9,"Розвиток та утриман-ня житлово-комунального господарства міста","Заходи для забезпечення сталого розвитку та утримання житлово-комунального господарства міста","2023-2026","Департамент розвитку інф-раструктури міста виконкому Криворізької міської ради Виконком Криворізької міської ради","Власні надходження",0,0,0,0,0,0,10000,0,0,0,{"$f":"M113","v":10000}]
["Усього за Програмою, у тому числі",null,null,null,null,"Усього",{"$f":"G115+G116+G117+G121+G119+G123+G125","v":263016.68},{"$f":"H115+H116+H117+H121+H119+H123+H125","v":335387.24},{"$f":"I115+I116+I117+I121+I119+I123+I125","v":353188.98},{"$f":"J115+J116+J121+J119+J123+J125","v":327030.23},467055.5,1010067.73,1217192.8999999999,623488,203150,203150,{"$f":"Q115+Q116+Q117+Q119+Q121+Q123+Q125","v":5002727.26},null,null,{"$f":"SUM(G114:P114)","v":5002727.26}]
[null,null,null,null,null,"Бюджет Криворізької міської територіальної громади ",{"$f":"G29+G50+G60+G94+G102+G109+G110+G112","v":260316.68},330587.24,348998.98,326280.23,465015.5,1009787.73,807061.4,323488,203150,{"$f":"P29+P50+P60+P94+P102+P109+P110+P112","v":203150},{"$f":"Q29+Q50+Q60+Q94+Q102+Q109+Q110+Q112","v":4277835.76},null,null,{"$f":"SUM(G115:P115)","v":4277835.76}]
[null,null,null,null,null,"Власні надхо-дження",{"$f":"G30+G51","v":700},{"$f":"H30+H51","v":800},900,750,2040,280,{"$f":"M30+M51+M113","v":10131.5},{"$f":"N30+N51+N113","v":0},{"$f":"O30+O51+O113","v":0},{"$f":"P30+P51+P113","v":0},{"$f":"G116+H116+I116+J116+K116+L116+M116+N116+O116+P116","v":15601.5}]
[null,null,null,null,null,"Субвенція з обласного бюджету бюджетам міст, районів та об’єднанням територіальних   громад на виконання дору-",{"$f":"G31","v":2000},2000,3290,"*","*","*","*",{"$f":"N31","v":"*"},"*","*",{"$f":"G117+H117+I117","v":7290}]
[null,null,null,null,null,"чень виборців депутатами обласної ради"]
[null,null,null,null,null,"Субвенція з державного бю-джету місцевим бюджетам на здійснення за-ходів щодо під-тримки терито-рій, що зазнали негативного  впливу внаслі-док  збройного конфлікту на сході України",{"$f":"G52","v":0},2000,0,0,0,0,0,0,0,0,{"$f":"SUM(G119:M119)","v":2000}]
[]
[null,null,null,null,null,"Субвенція з обласного бюджету до місцевих бюджетів на фінансування ",{"$f":"G34","v":0},0,0,0,0,0,0,0,0,0,{"$f":"SUM(G121:M121)","v":0}]
[null,null,null,null,null,"переможців обласного конкурсу мік-ропроєктів з енергоефек-тивності та енерго-збереження серед  органів самоорга-нізації населення та ОСББ"]
[null,null,null,null,null,"Субвенція з обласного бю-джету для здійснення заходів,   у тому числі з енергозбереже-ння, на об'єк-тах теплопоста-чання комунальної власності міста Кривого Рогу в умовах збройної агре-сії Російської Федерації проти України",{"$f":"G95","v":0},{"$f":"H95","v":0},0,0,0,0,300000,{"$f":"N80","v":300000},0,0,{"$f":"Q95+N123","v":600000}]
[]
[null,null,null,null,null,"Субвенція з обласного бю-джету до бюд-жету Криворі-зької міської територіальної громади для здійснення за-ходів із забез-печення  міста Кривого Рогу водопостачан-ням в умовах збройної агре-сії Російської Федерації проти України",0,0,0,0,0,0,100000,0,0,0,100000]
[]
[]
["Керуюча справами виконкому",null,null,null,null,null,"                           Олена ШОВГЕЛЯ",null,"   ",null,null,null,null,"Олена ШОВГЕЛЯ"]
[]
[null,null,null,null,null,"   ","                                          "]